bitfinex/quotes_BTCUSD_20260101
["timestamp","ask_amount","ask_price","bid_price","bid_amount"]
[1767264080717,0.01067742,87885.0,87875.0,0.0113798]
[1767264080942,0.02459474,87887.0,87875.0,0.0113798]
[1767264081245,0.01067742,87886.0,87875.0,0.0113798]
[1767264081462,0.01067742,87885.0,87875.0,0.0113798]
[1767264081592,0.02459474,87887.0,87875.0,0.0113798]
[1767264081949,0.01067847,87886.0,87876.0,0.01137967]
[1767264082096,0.01067847,87885.0,87875.0,0.0113798]
[1767264082297,0.02459474,87887.0,87875.0,0.0113798]
[1767264082514,0.01067991,87886.0,87875.0,0.0113798]
[1767264082724,0.01067991,87885.0,87875.0,0.0113798]
[1767264082946,0.02459474,87887.0,87875.0,0.0113798]
[1767264083171,0.01067991,87886.0,87875.0,0.0113798]
[1767264083375,0.01067991,87885.0,87875.0,0.0113798]
[1767264083554,0.01067991,87884.0,87875.0,0.0113798]
[1767264083757,0.02459474,87887.0,87875.0,0.0113798]
[1767264083931,0.01068204,87886.0,87875.0,0.06827849]
[1767264084278,0.01068204,87885.0,87875.0,0.0113798]
[1767264084497,0.01068213,87884.0,87877.0,0.01137954]
[1767264084623,0.02459474,87887.0,87877.0,0.01137954]
[1767264084830,0.01068213,87886.0,87876.0,0.01137967]
[1767264085032,0.01068213,87885.0,87877.0,0.01137954]
[1767264085239,0.01068213,87884.0,87877.0,0.01137954]
[1767264085438,0.02459474,87887.0,87876.0,0.01137967]
[1767264085653,0.01068257,87886.0,87876.0,0.01137967]
[1767264085882,0.01068257,87885.0,87876.0,0.01137967]
[1767264086078,0.01068257,87884.0,87876.0,0.01137967]
[1767264086286,0.02459474,87887.0,87876.0,0.01137967]
[1767264086543,0.0106826,87886.0,87877.0,0.01137954]
[1767264086755,0.0106826,87885.0,87876.0,0.01137967]
[1767264086975,0.0106826,87884.0,87876.0,0.01137967]
[1767264087148,0.02459474,87887.0,87876.0,0.01137967]
[1767264087351,0.01068321,87886.0,87876.0,0.01137967]
[1767264087549,0.01068321,87885.0,87877.0,0.01137954]
[1767264087763,0.01068321,87884.0,87877.0,0.01137954]
[1767264087998,0.01068321,87883.0,87877.0,0.01137954]
[1767264088145,0.02459474,87887.0,87877.0,0.01137954]
[1767264088336,0.01068323,87886.0,87876.0,0.01137967]
[1767264088538,0.01068323,87885.0,87876.0,0.01137967]
[1767264088757,0.01068323,87884.0,87876.0,0.01137967]
[1767264088960,0.02459474,87887.0,87876.0,0.01137967]
[1767264089219,0.01068328,87886.0,87876.0,0.01137967]
[1767264089393,0.01068328,87885.0,87876.0,0.01137967]
[1767264089590,0.01068328,87884.0,87877.0,0.01137954]
[1767264089778,0.02459474,87887.0,87877.0,0.01137954]
[1767264090109,0.01068334,87886.0,87877.0,0.01137954]
[1767264090277,0.01068334,87885.0,87876.0,0.01137967]
[1767264090478,0.01068334,87884.0,87877.0,0.01137954]
[1767264090702,0.02459474,87887.0,87877.0,0.01137954]
[1767264090905,0.01068335,87886.0,87876.0,0.01137967]
[1767264091148,0.01068335,87885.0,87877.0,0.01137954]
[1767264091373,0.01068335,87884.0,87876.0,0.01137967]
[1767264091561,0.02459474,87887.0,87876.0,0.01137967]
[1767264091704,0.01068339,87886.0,87876.0,0.01137967]
[1767264091918,0.01068339,87885.0,87876.0,0.01137967]
[1767264092124,0.01068339,87884.0,87876.0,0.01137967]
[1767264092323,0.02459474,87887.0,87877.0,0.01137954]
[1767264092566,0.01068345,87886.0,87877.0,0.01137954]
[1767264092830,0.01068345,87885.0,87877.0,0.01137954]
[1767264093155,0.01068345,87884.0,87877.0,0.01137954]
[1767264093352,0.02459474,87887.0,87876.0,0.01137967]
[1767264093565,0.01068351,87886.0,87876.0,0.01137967]
[1767264093764,0.01068351,87885.0,87876.0,0.01137967]
[1767264093975,0.01068351,87884.0,87876.0,0.01137967]
[1767264094184,0.02459474,87887.0,87876.0,0.01137967]
[1767264094341,0.01068358,87886.0,87876.0,0.01137967]
[1767264094541,0.01068358,87885.0,87876.0,0.01137967]
[1767264094749,0.01068358,87884.0,87876.0,0.01137967]
[1767264094982,0.02459474,87887.0,87876.0,0.01137967]
[1767264095216,0.01068357,87886.0,87876.0,0.01137967]
[1767264095353,0.01068357,87885.0,87875.0,0.0113798]
[1767264095559,0.02459474,87887.0,87876.0,0.01137967]
[1767264095778,0.01068366,87886.0,87876.0,0.01137967]
[1767264095956,0.01068366,87885.0,87876.0,0.01137967]
[1767264096317,0.01068366,87884.0,87876.0,0.01137967]
[1767264096447,0.02459474,87887.0,87877.0,0.01137954]
[1767264096648,0.01068367,87886.0,87877.0,0.01137954]
[1767264096865,0.01068367,87885.0,87877.0,0.01137954]
[1767264097087,0.01068367,87884.0,87877.0,0.01137954]
[1767264097282,0.02459474,87887.0,87877.0,0.01137954]
[1767264097485,0.01068368,87886.0,87877.0,0.01137954]
[1767264097646,0.01068368,87885.0,87877.0,0.01137954]
[1767264097848,0.01068368,87884.0,87877.0,0.01137954]
[1767264098047,0.02459474,87887.0,87877.0,0.01137954]
[1767264098285,0.01068369,87886.0,87877.0,0.01137954]
[1767264098490,0.01068369,87885.0,87877.0,0.01137954]
[1767264098694,0.01068369,87884.0,87877.0,0.01137954]
[1767264098910,0.02459474,87887.0,87877.0,0.01137954]
[1767264099109,0.01068369,87886.0,87877.0,0.01137954]
[1767264099276,0.01068369,87885.0,87877.0,0.01137954]
[1767264099481,0.01068369,87884.0,87877.0,0.01137954]
[1767264099690,0.02459474,87887.0,87877.0,0.01137954]
[1767264100018,0.0106837,87886.0,87877.0,0.01137954]
[1767264100213,0.0106837,87885.0,87877.0,0.01137954]
[1767264100364,0.0106837,87884.0,87877.0,0.01137954]
[1767264100562,0.04548291,87886.0,87874.0,0.01137993]
[1767264100814,0.03527843,87885.0,87874.0,0.01137993]
[1767264100972,0.01068369,87884.0,87874.0,0.01137993]
[1767264101178,0.02459474,87885.0,87874.0,0.01137993]
[1767264101422,0.01068369,87884.0,87873.0,0.01138005]
[1767264101719,0.02459474,87885.0,87873.0,0.01138005]
[1767264101927,0.01068368,87884.0,87873.0,0.01138005]
[1767264102221,0.02459474,87885.0,87874.0,0.01137993]
[1767264102421,0.01068369,87884.0,87874.0,0.01137993]
[1767264102624,0.02459474,87885.0,87873.0,0.01138005]
[1767264102921,0.01068369,87884.0,87874.0,0.01137993]
[1767264103073,0.02459474,87885.0,87874.0,0.01137993]
[1767264103388,0.01068369,87884.0,87874.0,0.01137993]
[1767264103584,0.02459474,87885.0,87874.0,0.01137993]
[1767264103786,0.01068369,87884.0,87874.0,0.01137993]
[1767264103985,0.02459474,87885.0,87874.0,0.01137993]
[1767264104171,0.0106837,87884.0,87874.0,0.01137993]
[1767264104377,0.02459474,87885.0,87874.0,0.01137993]
[1767264104577,0.01068371,87884.0,87874.0,0.01137993]
[1767264104777,0.02459474,87885.0,87874.0,0.01137993]
[1767264104983,0.0106837,87884.0,87874.0,0.01137993]
[1767264105186,0.02459474,87885.0,87874.0,0.01137993]
[1767264105393,0.01068371,87884.0,87874.0,0.01137993]
[1767264105591,0.02459474,87885.0,87874.0,0.01137993]
[1767264105813,0.01068372,87884.0,87874.0,0.01137993]
[1767264106025,0.02459474,87885.0,87874.0,0.01137993]
[1767264106264,0.01068373,87884.0,87874.0,0.01137993]
[1767264106482,0.02459474,87885.0,87874.0,0.01137993]
[1767264106684,0.01068373,87884.0,87874.0,0.01137993]
[1767264106996,0.02459474,87885.0,87874.0,0.01137993]
[1767264107148,0.01068373,87884.0,87875.0,0.0113798]
[1767264107352,0.02459474,87885.0,87875.0,0.0113798]
[1767264107553,0.01068374,87884.0,87875.0,0.0113798]
[1767264107751,0.02459474,87885.0,87875.0,0.0113798]
[1767264108054,0.01068374,87884.0,87875.0,0.0113798]
[1767264108237,0.02459474,87885.0,87875.0,0.0113798]
[1767264108433,0.01068376,87884.0,87875.0,0.0113798]
[1767264108641,0.02459474,87885.0,87875.0,0.0113798]
[1767264108835,0.01068376,87884.0,87875.0,0.0113798]
[1767264109043,0.02459474,87885.0,87875.0,0.0113798]
[1767264109342,0.01068379,87884.0,87875.0,0.0113798]
[1767264109572,0.02459474,87885.0,87875.0,0.0113798]
[1767264109772,0.01068379,87884.0,87875.0,0.0113798]
[1767264109977,0.02459474,87885.0,87875.0,0.0113798]
[1767264110193,0.01068379,87884.0,87875.0,0.0113798]
[1767264110422,0.02459474,87885.0,87875.0,0.0113798]
[1767264110621,0.01068381,87884.0,87875.0,0.0113798]
[1767264110858,0.02459474,87885.0,87875.0,0.0113798]
[1767264111060,0.01068381,87884.0,87875.0,0.0113798]
[1767264111268,0.02459474,87885.0,87875.0,0.0113798]
[1767264111504,0.01068382,87884.0,87875.0,0.0113798]
[1767264111700,0.02459474,87885.0,87875.0,0.0113798]
[1767264111906,0.01068382,87884.0,87875.0,0.0113798]
[1767264112102,0.02459474,87885.0,87875.0,0.0113798]
[1767264112285,0.01068385,87884.0,87874.0,0.01137993]
[1767264112612,0.02459474,87885.0,87874.0,0.01137993]
[1767264112815,0.01068386,87884.0,87875.0,0.0113798]
[1767264112982,0.02459474,87885.0,87875.0,0.0113798]
[1767264113184,0.01068385,87884.0,87875.0,0.0113798]
[1767264113517,0.02459474,87885.0,87875.0,0.0113798]
[1767264113735,0.01068387,87884.0,87875.0,0.0113798]
[1767264113896,0.02459474,87885.0,87875.0,0.0113798]
[1767264114097,0.01068387,87884.0,87875.0,0.0113798]
[1767264114281,0.02459474,87885.0,87876.0,0.01137967]
[1767264114478,0.01068389,87884.0,87875.0,0.0113798]
[1767264114733,0.02459474,87885.0,87875.0,0.0113798]
[1767264114929,0.01068389,87884.0,87875.0,0.0113798]
[1767264115095,0.02459474,87885.0,87875.0,0.0113798]
[1767264115302,0.01068391,87884.0,87874.0,0.01137993]
[1767264115517,0.02459474,87885.0,87874.0,0.01137993]
[1767264115702,0.01068391,87884.0,87875.0,0.0113798]
[1767264115898,0.02459474,87885.0,87875.0,0.0113798]
[1767264116103,0.01068391,87884.0,87875.0,0.0113798]
[1767264116342,0.02459474,87885.0,87874.0,0.01137993]
[1767264116494,0.01068389,87884.0,87874.0,0.01137993]
[1767264116693,0.02459474,87885.0,87875.0,0.0113798]
[1767264116933,0.01068389,87884.0,87875.0,0.0113798]
[1767264117162,0.02459474,87885.0,87875.0,0.0113798]
[1767264117471,0.01068389,87884.0,87875.0,0.0113798]
[1767264117653,0.02459474,87885.0,87874.0,0.01137993]
[1767264117857,0.01068389,87884.0,87875.0,0.0113798]
[1767264118055,0.02459474,87885.0,87875.0,0.0113798]
[1767264118258,0.01068392,87884.0,87875.0,0.0113798]
[1767264118433,0.02459474,87885.0,87875.0,0.0113798]
[1767264118639,0.01068392,87884.0,87875.0,0.0113798]
[1767264118861,0.02459474,87885.0,87875.0,0.0113798]
[1767264119067,0.01068392,87884.0,87875.0,0.0113798]
[1767264119217,0.02459474,87885.0,87875.0,0.0113798]
[1767264119418,0.01068391,87884.0,87875.0,0.0113798]
[1767264119623,0.02459474,87885.0,87875.0,0.0113798]
[1767264119864,0.01068391,87884.0,87875.0,0.0113798]
[1767264120176,0.02459474,87885.0,87875.0,0.0113798]
[1767264120323,0.01068391,87884.0,87875.0,0.0113798]
[1767264120523,0.02459474,87885.0,87875.0,0.0113798]
[1767264120823,0.01068391,87884.0,87875.0,0.0113798]
[1767264121176,0.02459474,87885.0,87875.0,0.0113798]
[1767264121336,0.01068391,87884.0,87875.0,0.0113798]
[1767264121539,0.02459474,87885.0,87875.0,0.0113798]
[1767264121836,0.01068391,87884.0,87875.0,0.0113798]
[1767264122038,0.02459474,87885.0,87874.0,0.01137993]
[1767264122238,0.0106839,87884.0,87875.0,0.0113798]
[1767264122438,0.02459474,87885.0,87875.0,0.0113798]
[1767264122746,0.01068391,87884.0,87876.0,0.01137967]
[1767264122939,0.02459474,87885.0,87875.0,0.0113798]
[1767264123140,0.01068391,87884.0,87876.0,0.01137967]
[1767264123387,0.02459474,87885.0,87876.0,0.01137967]
[1767264123561,0.01068391,87884.0,87876.0,0.01137967]
[1767264123887,0.02459474,87885.0,87876.0,0.01137967]
[1767264124084,0.01068391,87884.0,87876.0,0.01137967]
[1767264124310,0.02459474,87885.0,87875.0,0.0113798]
[1767264124489,0.01068391,87884.0,87876.0,0.01137967]
[1767264124698,0.02459474,87885.0,87877.0,0.01137954]
[1767264124879,0.01068391,87884.0,87877.0,0.01137954]
[1767264125080,0.02459474,87885.0,87877.0,0.01137954]
[1767264125282,0.01068391,87884.0,87876.0,0.01137967]
[1767264125441,0.02459474,87885.0,87876.0,0.01137967]
[1767264125647,0.01068391,87884.0,87876.0,0.01137967]
[1767264125850,0.02459474,87885.0,87875.0,0.0113798]
[1767264126167,0.01068391,87884.0,87876.0,0.01137967]
[1767264126384,0.02459474,87885.0,87877.0,0.01137954]
[1767264126725,0.01068391,87884.0,87876.0,0.01137967]
[1767264126927,0.02459474,87885.0,87877.0,0.01137954]
[1767264127111,0.01068391,87884.0,87877.0,0.01137954]
[1767264127267,0.02459474,87885.0,87877.0,0.01137954]
[1767264127606,0.0106839,87884.0,87877.0,0.01137954]
[1767264127780,0.02459474,87885.0,87877.0,0.01137954]
[1767264127980,0.0106839,87884.0,87877.0,0.01137954]
[1767264128186,0.02459474,87885.0,87877.0,0.01137954]
[1767264128431,0.01068391,87884.0,87877.0,0.01137954]
[1767264128618,0.02459474,87885.0,87876.0,0.01137967]
[1767264128823,0.01068391,87884.0,87877.0,0.01137954]
[1767264129055,0.02459474,87885.0,87877.0,0.01137954]
[1767264129346,0.01068391,87884.0,87877.0,0.01137954]
[1767264129543,0.02459474,87885.0,87877.0,0.01137954]
[1767264129742,0.0106839,87884.0,87877.0,0.01137954]
[1767264129942,0.02459474,87885.0,87878.0,0.01137941]
[1767264130147,0.0106839,87884.0,87878.0,0.01137941]
[1767264130344,0.02459474,87885.0,87877.0,0.01137954]
[1767264130550,0.01068389,87884.0,87877.0,0.01137954]
[1767264130692,0.02459474,87885.0,87877.0,0.01137954]
[1767264130895,0.01068389,87884.0,87877.0,0.01137954]
[1767264131113,0.02459474,87885.0,87877.0,0.01137954]
[1767264131337,0.01068373,87884.0,87877.0,0.01137954]
[1767264131648,0.02459474,87885.0,87877.0,0.01137954]
[1767264131798,0.01068373,87884.0,87877.0,0.01137954]
[1767264131995,0.02459474,87885.0,87877.0,0.01137954]
[1767264132238,0.01068374,87884.0,87877.0,0.01137954]
[1767264132399,0.02459474,87885.0,87877.0,0.01137954]
[1767264132600,0.01068359,87884.0,87877.0,0.01137954]
[1767264132800,0.02459474,87885.0,87876.0,0.01137967]
[1767264133050,0.01068359,87884.0,87876.0,0.01137967]
[1767264133214,0.02459474,87885.0,87877.0,0.01137954]
[1767264133422,0.01068349,87884.0,87877.0,0.01137954]
[1767264133620,0.02459474,87885.0,87877.0,0.01137954]
[1767264133805,0.01068348,87884.0,87877.0,0.01137954]
[1767264134005,0.02459474,87885.0,87877.0,0.01137954]
[1767264134201,0.01068348,87884.0,87877.0,0.01137954]
[1767264134444,0.02459474,87885.0,87877.0,0.01137954]
[1767264134622,0.01068341,87884.0,87877.0,0.01137954]
[1767264134952,0.02459474,87885.0,87877.0,0.01137954]
[1767264135138,0.01068341,87884.0,87877.0,0.01137954]
[1767264135337,0.02459474,87885.0,87877.0,0.01137954]
[1767264135533,0.01068335,87884.0,87877.0,0.01137954]
[1767264135720,0.02459474,87885.0,87877.0,0.01137954]
[1767264135959,0.01068335,87884.0,87877.0,0.01137954]
[1767264136265,0.02459474,87885.0,87877.0,0.01137954]
[1767264136535,0.02459474,87885.0,87876.0,0.01137967]
[1767264137415,0.02459474,87885.0,87877.0,0.01137954]
[1767264137755,0.02459474,87885.0,87876.0,0.01137967]
[1767264138113,0.02459474,87885.0,87877.0,0.01137954]
[1767264138316,0.01068317,87884.0,87877.0,0.01137954]
[1767264138489,0.02459474,87885.0,87877.0,0.01137954]
[1767264138696,0.01068322,87884.0,87877.0,0.01137954]
[1767264138895,0.02459474,87885.0,87877.0,0.01137954]
[1767264139064,0.01068322,87884.0,87877.0,0.01137954]
[1767264139263,0.02459474,87885.0,87877.0,0.01137954]
[1767264139502,0.01068322,87884.0,87877.0,0.01137954]
[1767264139815,0.02459474,87885.0,87877.0,0.01137954]
[1767264139994,0.01068322,87884.0,87877.0,0.01137954]
[1767264140181,0.02459474,87885.0,87877.0,0.01137954]
[1767264140378,0.01068322,87884.0,87877.0,0.01137954]
[1767264140613,0.02459474,87885.0,87877.0,0.01137954]
[1767264140817,0.01068322,87884.0,87877.0,0.01137954]
[1767264140992,0.02459474,87885.0,87877.0,0.01137954]
[1767264141200,0.01068322,87884.0,87877.0,0.01137954]
[1767264141374,0.02459474,87885.0,87877.0,0.01137954]
[1767264141575,0.01068322,87884.0,87876.0,0.01137967]
[1767264141776,0.02459474,87885.0,87876.0,0.01137967]
[1767264141976,0.01068322,87884.0,87876.0,0.01137967]
[1767264142176,0.02459474,87885.0,87875.0,0.0113798]
[1767264142429,0.01068323,87884.0,87875.0,0.0113798]
[1767264142721,0.02459474,87885.0,87875.0,0.0113798]
[1767264143023,0.01068323,87884.0,87875.0,0.0113798]
[1767264143229,0.02459474,87885.0,87875.0,0.0113798]
[1767264143449,0.01068324,87884.0,87875.0,0.0113798]
[1767264143605,0.02459474,87885.0,87875.0,0.0113798]
[1767264143821,0.01068324,87884.0,87874.0,0.01137993]
[1767264144030,0.02459474,87885.0,87875.0,0.0113798]
[1767264144211,0.01068323,87884.0,87875.0,0.0113798]
[1767264144410,0.53842686,87885.0,87872.0,0.01138018]
[1767264144611,0.51383212,87882.0,87871.0,0.0114]
[1767264144812,0.5138763,87882.0,87871.0,0.0114]
[1767264145153,0.5138763,87882.0,87872.0,0.01138018]
[1767264145610,0.5138763,87882.0,87871.0,0.02278031]
[1767264145948,0.5138763,87882.0,87873.0,0.01138005]
[1767264146514,0.5138763,87882.0,87872.0,0.01138018]
[1767264148185,0.5138763,87882.0,87871.0,0.02278031]
[1767264148381,0.5138763,87882.0,87872.0,0.01138018]
[1767264148814,0.5138763,87882.0,87873.0,0.01138005]
[1767264148974,0.5138763,87882.0,87872.0,0.01138018]
[1767264151723,0.5138763,87882.0,87873.0,0.01138005]
[1767264153430,0.5138763,87882.0,87872.0,0.01138018]
[1767264154574,0.5138763,87882.0,87871.0,0.02278031]
[1767264155397,0.5138763,87882.0,87872.0,0.01138018]
[1767264155800,0.5138763,87882.0,87873.0,0.01138005]
[1767264156157,0.5138763,87882.0,87872.0,0.01138018]
[1767264158297,0.5138763,87882.0,87871.0,0.01138031]
[1767264158502,0.5138763,87882.0,87870.0,0.0114]
[1767264158503,0.02461476,87881.0,87870.0,0.0114]
[1767264158770,0.51383212,87880.0,87868.0,0.0113807]
[1767264158946,0.51383212,87878.0,87868.0,0.0114]
[1767264159307,0.04817627,87877.0,87867.0,0.0114]
[1767264159471,0.56200839,87877.0,87865.0,0.01138109]
[1767264159671,0.51383212,87874.0,87865.0,0.02278109]
[1767264160258,0.51383212,87874.0,87866.0,0.01138096]
[1767264160858,0.51383212,87876.0,87866.0,0.01138096]
[1767264164368,0.51383212,87876.0,87867.0,0.01138083]
[1767264164557,0.04817627,87877.0,87867.0,0.01138083]
[1767264166432,0.04817627,87877.0,87868.0,0.0113807]
[1767264169918,0.04817627,87877.0,87867.0,0.01138083]
[1767264170284,0.04817627,87877.0,87868.0,0.0113807]
[1767264170820,0.04817627,87877.0,87867.0,0.01138083]
[1767264170967,0.04817627,87877.0,87868.0,0.0113807]
[1767264171171,0.04817627,87877.0,87867.0,0.01138083]
[1767264171725,0.04817627,87877.0,87866.0,0.01138096]
[1767264171879,0.04817627,87877.0,87867.0,0.01138083]
[1767264172084,0.04817627,87877.0,87866.0,0.01138096]
[1767264172729,0.04817627,87877.0,87867.0,0.01138083]
[1767264173322,0.04817627,87877.0,87866.0,0.01138096]
[1767264174099,0.04817627,87877.0,87867.0,0.01138083]
[1767264176852,0.04817627,87877.0,87868.0,0.0113807]
[1767264177762,0.04817627,87877.0,87867.0,0.01138083]
[1767264178720,0.04817627,87877.0,87868.0,0.0113807]
[1767264178918,0.04817627,87877.0,87867.0,0.01138083]
[1767264179538,0.04817627,87877.0,87866.0,0.01138096]
[1767264180455,0.04817627,87877.0,87867.0,0.01138083]
[1767264180626,0.04817627,87877.0,87866.0,0.01138096]
[1767264181903,0.04817627,87877.0,87867.0,0.01138083]
[1767264182063,0.04817627,87877.0,87866.0,0.01138096]
[1767264182263,0.04817627,87877.0,87867.0,0.01138083]
[1767264183987,0.04817627,87877.0,87868.0,0.0113807]
[1767264184158,0.04817627,87877.0,87867.0,0.01138083]
[1767264184377,0.04817627,87877.0,87868.0,0.0113807]
[1767264184791,0.04817627,87877.0,87867.0,0.01138083]
[1767264185206,0.04817627,87877.0,87868.0,0.0113807]
[1767264185559,0.04817627,87877.0,87867.0,0.01138083]
[1767264186137,0.04817627,87877.0,87868.0,0.0113807]
[1767264189936,0.04817627,87877.0,87869.0,0.01138057]
[1767264193103,0.04817627,87877.0,87868.0,0.0113807]
[1767264194634,0.04817627,87877.0,87867.0,0.01138083]
[1767264195346,0.04817627,87877.0,87868.0,0.0113807]
[1767264196177,0.04817627,87877.0,87869.0,0.01138057]
[1767264196393,0.04817627,87877.0,87868.0,0.0113807]
[1767264198310,0.04817627,87877.0,87867.0,0.01138083]
[1767264201958,0.04817627,87877.0,87868.0,0.0113807]
[1767264202653,0.04817627,87877.0,87867.0,0.01138083]
[1767264202952,0.04817627,87877.0,87868.0,0.0113807]
[1767264204519,0.04817627,87877.0,87866.0,0.01138096]
[1767264204727,0.04817627,87877.0,87867.0,0.01138083]
[1767264206027,0.04817627,87877.0,87866.0,0.01138096]
[1767264206194,0.04817627,87877.0,87867.0,0.01138083]
[1767264209726,0.04817627,87877.0,87865.0,0.02278109]
[1767264209899,0.513957,87875.0,87865.0,0.02278109]
[1767264210103,0.04817627,87877.0,87865.0,0.02278109]
[1767264210946,0.04817627,87877.0,87865.0,0.0114]
[1767264211681,0.04817627,87877.0,87865.0,0.02278109]
[1767264211860,0.04817627,87877.0,87865.0,0.0114]
[1767264212058,0.04817627,87877.0,87865.0,0.02278109]
[1767264214942,0.04817627,87877.0,87866.0,0.01138096]
[1767264215156,0.04817627,87877.0,87865.0,0.0114]
[1767264215748,0.04817627,87877.0,87866.0,0.01138096]
[1767264215957,0.04817627,87877.0,87865.0,0.0114]
[1767264216997,0.04817627,87877.0,87865.0,0.02278109]
[1767264218029,0.04817627,87877.0,87865.0,0.0114]
[1767264218323,0.04817627,87877.0,87866.0,0.01138096]
[1767264218528,0.04817627,87877.0,87865.0,0.02278109]
[1767264218972,0.513957,87880.0,87865.0,0.02278109]
[1767264219134,0.02461149,87879.0,87865.0,0.05783378]
[1767264220129,0.02461149,87879.0,87866.0,0.05783365]
[1767264220470,0.02461149,87879.0,87867.0,0.01138083]
[1767264221853,0.02461149,87879.0,87866.0,0.05783365]
[1767264222058,0.02461149,87879.0,87867.0,0.01138083]
[1767264224496,0.02461149,87879.0,87866.0,0.05783365]
[1767264224660,0.02461149,87879.0,87867.0,0.01138083]
[1767264225397,0.02461149,87879.0,87866.0,0.05783365]
[1767264225596,0.02461149,87879.0,87867.0,0.01138083]
[1767264226979,0.02461149,87879.0,87866.0,0.05783365]
[1767264227527,0.02461149,87879.0,87867.0,0.01138083]
[1767264228633,0.02461149,87879.0,87866.0,0.05783365]
[1767264229182,0.02461149,87879.0,87867.0,0.01138083]
[1767264229988,0.02461149,87879.0,87866.0,0.05783365]
[1767264230448,0.02461149,87879.0,87867.0,0.01138083]
[1767264230449,0.51398164,87876.0,87867.0,0.01138083]
[1767264230682,0.51398164,87876.0,87866.0,0.05783365]
[1767264232106,0.51398164,87876.0,87867.0,0.01138083]
[1767264233010,0.51398164,87876.0,87866.0,0.05783365]
[1767264233173,0.51398164,87876.0,87867.0,0.01138083]
[1767264233374,0.51398164,87876.0,87866.0,0.05783365]
[1767264233875,0.51398164,87876.0,87867.0,0.01138083]
[1767264234750,0.51398164,87876.0,87866.0,0.01138096]
[1767264234932,0.51398164,87876.0,87867.0,0.01138083]
[1767264240644,0.51398164,87876.0,87866.0,0.01138096]
[1767264242313,0.51398164,87876.0,87867.0,0.01138083]
[1767264243947,0.51398164,87876.0,87866.0,0.01138096]
[1767264244234,0.51398164,87876.0,87867.0,0.01138083]
[1767264248978,0.51398164,87876.0,87868.0,0.0113807]
[1767264249180,0.56304542,87878.0,87868.0,0.0113807]
[1767264249798,0.56304542,87878.0,87867.0,0.01138083]
[1767264254714,0.56304542,87878.0,87866.0,0.01138096]
[1767264254939,0.51398164,87876.0,87866.0,0.01138096]
[1767264255885,0.51398164,87876.0,87867.0,0.01138083]
[1767264259732,0.51398164,87880.0,87868.0,0.0113807]
[1767264259945,0.02460623,87879.0,87869.0,0.01138057]
[1767264260164,0.02460623,87879.0,87868.0,0.0113807]
[1767264260333,0.02460623,87879.0,87869.0,0.01138057]
[1767264262070,0.02460623,87879.0,87868.0,0.0113807]
[1767264262272,0.02460623,87879.0,87869.0,0.01138057]
[1767264263341,0.02460623,87879.0,87868.0,0.0113807]
[1767264263707,0.02460623,87879.0,87869.0,0.01138057]
[1767264270186,0.02460623,87879.0,87870.0,0.01138044]
[1767264270386,0.02460623,87879.0,87869.0,0.01138057]
[1767264271537,0.02460623,87879.0,87870.0,0.01138044]
[1767264272048,0.51398164,87880.0,87870.0,0.01138044]
[1767264272260,0.02460391,87879.0,87870.0,0.01138044]
[1767264273521,0.02460391,87879.0,87869.0,0.01138057]
[1767264274112,0.02460391,87879.0,87870.0,0.01138044]
[1767264275174,0.02460391,87879.0,87869.0,0.01138057]
[1767264276861,0.02460391,87879.0,87868.0,0.0113807]
[1767264277191,0.02460391,87879.0,87869.0,0.01138057]
[1767264277766,0.02460391,87879.0,87868.0,0.0113807]
[1767264277940,0.02460391,87879.0,87869.0,0.01138057]
[1767264278340,0.02460391,87879.0,87868.0,0.0113807]
[1767264279816,0.02460391,87879.0,87867.0,0.0682844]
[1767264279956,0.02460391,87879.0,87868.0,0.0113807]
[1767264281516,0.02460391,87879.0,87867.0,0.01138083]
[1767264281717,0.02460391,87879.0,87868.0,0.0113807]
[1767264287587,0.02460391,87879.0,87867.0,0.01138083]
[1767264288177,0.02460391,87879.0,87868.0,0.0113807]
[1767264289063,0.51398164,87878.0,87867.0,0.01138083]
[1767264289697,0.51398164,87878.0,87866.0,0.04972619]
[1767264289900,0.51398164,87876.0,87866.0,0.01138096]
[1767264291086,0.51398164,87876.0,87867.0,0.01138083]
[1767264291583,0.51398164,87876.0,87866.0,0.01138096]
[1767264292588,0.04635009,87877.0,87866.0,0.01138096]
[1767264293389,0.04635009,87877.0,87867.0,0.01138083]
[1767264294431,0.04635009,87877.0,87866.0,0.01138096]
[1767264299028,0.04635009,87877.0,87867.0,0.01138083]
[1767264299459,0.04635009,87877.0,87866.0,0.01138096]
[1767264300444,0.04635009,87877.0,87867.0,0.01138083]
[1767264300854,0.04635009,87877.0,87866.0,0.01138096]
[1767264301042,0.04635009,87877.0,87867.0,0.01138083]
[1767264301649,0.04635009,87877.0,87866.0,0.01138096]
[1767264301858,0.04635009,87877.0,87867.0,0.01138083]
[1767264302303,0.04635009,87877.0,87865.0,0.01138109]
[1767264302483,0.04635009,87877.0,87866.0,0.01138096]
[1767264303472,0.04635009,87877.0,87867.0,0.01138083]
[1767264303787,0.04635009,87877.0,87865.0,0.01138109]
[1767264303990,0.04635009,87877.0,87866.0,0.01138096]
[1767264305157,0.04635009,87877.0,87867.0,0.01138083]
[1767264305525,0.04635009,87877.0,87864.0,0.06837778]
[1767264305526,0.000548,87867.0,87864.0,9.099e-05]
[1767264306033,0.04755614,87872.0,87864.0,9.099e-05]
[1767264318906,0.05895614,87876.0,87864.0,9.099e-05]
[1767264323207,0.05895614,87876.0,87864.0,0.01147221]
[1767264323589,0.05895614,87876.0,87864.0,9.099e-05]
[1767264327447,0.05895614,87876.0,87864.0,0.01147221]
[1767264327676,0.05895614,87876.0,87864.0,9.099e-05]
[1767264328033,0.05895614,87876.0,87864.0,0.01147221]
[1767264328434,0.05895614,87876.0,87864.0,9.099e-05]
[1767264328858,0.05895614,87876.0,87864.0,0.01147221]
[1767264335448,0.02460545,87875.0,87864.0,0.01147221]
[1767264335994,0.02460545,87875.0,87865.0,0.01138109]
[1767264336234,0.02460545,87875.0,87864.0,0.01147221]
[1767264336235,0.02460545,87875.0,87864.0,9.099e-05]
[1767264336440,0.02460545,87875.0,87864.0,0.01147221]
[1767264339428,0.02460545,87875.0,87865.0,0.01138109]
[1767264340288,0.02460545,87875.0,87864.0,9.099e-05]
[1767264340500,0.02460545,87875.0,87864.0,0.01147221]
[1767264341691,0.02460545,87875.0,87865.0,0.01138109]
[1767264342094,0.02460545,87875.0,87864.0,0.01147221]
[1767264344270,0.02460545,87875.0,87865.0,0.01138109]
[1767264344462,0.02460545,87875.0,87864.0,0.01147221]
[1767264344864,0.02460545,87875.0,87865.0,0.01138109]
[1767264345362,0.02460545,87875.0,87864.0,0.01147221]
[1767264346463,0.02460545,87875.0,87865.0,0.01138109]
[1767264346873,0.02460545,87875.0,87864.0,0.01147221]
[1767264349995,0.02460545,87875.0,87864.0,9.099e-05]
[1767264350191,0.02460545,87875.0,87864.0,0.01147221]
[1767264350630,0.02460545,87875.0,87865.0,0.01138109]
[1767264350789,0.02460545,87875.0,87864.0,0.01147221]
[1767264351614,0.02460545,87875.0,87864.0,9.099e-05]
[1767264351831,0.02460545,87875.0,87865.0,0.01138109]
[1767264352028,0.02460545,87875.0,87864.0,0.01147221]
[1767264354347,0.02460545,87875.0,87865.0,0.01138109]
[1767264354517,0.53859914,87875.0,87865.0,0.01138109]
[1767264354716,0.51399369,87875.0,87864.0,0.01147221]